Workbook

Sheet MYP, MSS
B1: Janne Pukkila | E1: 24.12.1976
B2: YKKÖSPESIS | E2: Runkosarja | L2: Runkosarja TOP-10 | Q2: Jatkosarjat | X2: SUOMENSARJA | AA2: Runkosarja | AH2: Runkosarja TOP-10 | AM2: Jatkosarjat
B3: Vuosi | C3: Sija | D3: Seura | E3: OTT | F3: KUN | G3: LÖI | H3: TOI | I3: KL | J3: KL-% | L3: LÖI | M3: TOI | N3: L+T | O3: KL | Q3: OTT | R3: KUN | S3: LÖI | T3: TOI | U3: KL | V3: KL-% | X3: Vuosi | Y3: Sija | Z3: Seura | AA3: OTT | AB3: KUN | AC3: LÖI | AD3: TOI | AE3: KL | AF3: KL-% | AH3: LÖI | AI3: TOI | AJ3: L+T | AK3: KL | AM3: OTT | AN3: KUN | AO3: LÖI | AP3: TOI | AQ3: KL | AR3: KL-%
B4: 1997 | C4: 14. | D4: NJ | E4: 6 | F4: 0 | G4: 1 | H4: 1 | I4: 6
X6: 2004 | Y6: 5. | Z6: Paukku | AA6: 7 | AB6: 0 | AC6: 0 | AD6: 4 | AE6: 13 | AF6: 46.4 % | AG6: 28
B7: YHTEENSÄ | E7: =SUM(E4:E6) -> 6 | F7: =SUM(F4:F6) -> 0 | G7: =SUM(G4:G6) -> 1 | H7: =SUM(H4:H6) -> 1 | I7: =SUM(I4:I6) -> 6 | J7: 0.0 % | K7: =SUM(K6:K6) -> 0 | Q7: =SUM(Q6:Q6) -> 0 | R7: =SUM(R6:R6) -> 0 | S7: =SUM(S6:S6) -> 0 | T7: =SUM(T6:T6) -> 0 | U7: =SUM(U6:U6) -> 0 | V7: 0.0 % | W7: =SUM(W6:W6) -> 0 | X7: YHTEENSÄ | AA7: =SUM(AA4:AA6) -> 7 | AB7: =SUM(AB4:AB6) -> 0 | AC7: 0 | AD7: 4 | AE7: 13 | AF7: =PRODUCT(AE7/AG7) -> 46.4 % | AG7: 28 | AM7: =SUM(AM6:AM6) -> 0 | AN7: =SUM(AN6:AN6) -> 0 | AO7: =SUM(AO6:AO6) -> 0 | AP7: =SUM(AP6:AP6) -> 0 | AQ7: =SUM(AQ6:AQ6) -> 0 | AR7: 0.0 % | AS7: =SUM(AS6:AS6) -> 0
B9: KAIKKI OTTELUT | E9: OTT | F9: KUN | G9: LÖI | H9: TOI | I9: KL | J9: KL-% | L9: ka/L | M9: ka/T | N9: ka/l+t | O9: ka/kl | R9: Seurat | T9: NJ = Nurmon Jymy (1925)
B10: SUPERPESIS | E10: 0 | F10: 0 | G10: 0 | H10: 0 | I10: 0 | J10: 0.0 % | K10: 0 | L10: 0.00 | M10: 0.00 | N10: 0.00 | O10: 0.00 | T10: Paukku = Hämeenlinnan Paukku (1961)
B11: YKKÖSPESIS | E11: =PRODUCT(E7+Q7) -> 6 | F11: =PRODUCT(F7+R7) -> 0 | G11: =PRODUCT(G7+S7) -> 1 | H11: =PRODUCT(H7+T7) -> 1 | I11: =PRODUCT(I7+U7) -> 6 | J11: 0.0 % | K11: 0 | L11: =PRODUCT((F11+G11)/E11) -> 0.17 | M11: =PRODUCT(H11/E11) -> 0.17 | N11: =PRODUCT((F11+G11+H11)/E11) -> 0.33 | O11: =PRODUCT(I11/E11) -> 1.00
B12: SUOMENSARJA | E12: =PRODUCT(AA7+AM7) -> 7 | F12: =PRODUCT(AB7+AN7) -> 0 | G12: =PRODUCT(AC7+AO7) -> 0 | H12: =PRODUCT(AD7+AP7) -> 4 | I12: =PRODUCT(AE7+AQ7) -> 13 | J12: =PRODUCT(I12/K12) -> 46.4 % | K12: =PRODUCT(AG7+AS7) -> 28 | L12: =PRODUCT((F12+G12)/E12) -> 0.00 | M12: =PRODUCT(H12/E12) -> 0.57 | N12: =PRODUCT((F12+G12+H12)/E12) -> 0.57 | O12: =PRODUCT(I12/E12) -> 1.86
B13: YHTEENSÄ | E13: =SUM(E10:E12) -> 13 | F13: =SUM(F10:F12) -> 0 | G13: 1 | H13: 5 | I13: 19 | J13: =PRODUCT(I13/K13) -> 67.9 % | K13: =SUM(K10:K12) -> 28 | L13: =PRODUCT((F13+G13)/E13) -> 0.08 | M13: =PRODUCT(H13/E13) -> 0.38 | N13: =PRODUCT((F13+G13+H13)/E13) -> 0.46 | O13: =PRODUCT(I13/E13) -> 1.46
